bitfinex-derivatives/quotes_ETHF0:USTF0_20230402
["timestamp","ask_amount","ask_price","bid_price","bid_amount"]
[1680438983409,15.98507374,1812.6,1812.4,1.44414623]
[1680438983604,15.98507374,1812.6,1812.5,0.57756026]
[1680438983803,15.98507374,1812.6,1812.4,1.44414623]
[1680438984510,15.98507374,1812.6,1812.4,0.57756026]
[1680438984808,15.98507374,1812.6,1812.4,1.44414623]
[1680438985001,16.0371091,1812.6,1812.4,1.44414623]
[1680438985200,16.0371091,1812.6,1812.4,0.57756026]
[1680438989316,16.0371091,1812.6,1812.4,0.57260734]
[1680438995321,16.0371091,1812.6,1812.0,0.86635643]
[1680438995322,7.14422016,1812.5,1812.0,0.86635643]
[1680438995620,3.2078,1812.1,1811.9,0.86635643]
[1680438997415,3.2078,1812.1,1812.0,6.11410089]
[1680438998222,3.781999,1812.5,1812.0,7.98045732]
[1680438998417,3.781999,1812.5,1812.1,1.0]
[1680438998619,3.2078,1812.5,1812.1,1.86635643]
[1680438998822,3.2078,1812.5,1812.2,7.9423516]
[1680438999123,3.2078,1812.5,1812.3,1.0]
[1680439000021,0.23007014,1812.4,1812.3,1.0]
[1680439002032,0.23007014,1812.4,1812.3,1.86635643]
[1680439002416,12.6,1812.6,1812.3,8.09959165]
[1680439002833,12.6,1812.6,1812.4,0.86635643]
[1680439003528,12.6,1812.6,1812.5,1.0]
[1680439003726,12.6,1812.6,1812.5,1.86635643]
[1680439004031,12.6,1812.6,1812.5,7.77503989]
[1680439005424,3.2078,1812.7,1812.5,7.77503989]
[1680439005624,3.2078,1812.7,1812.6,0.86594513]
[1680439005825,16.3078,1812.7,1812.6,0.86594513]
[1680439006026,16.42898136,1812.7,1812.6,0.86594513]
[1680439007228,16.42898136,1812.7,1812.6,7.06608844]
[1680439008530,3.32898136,1812.7,1812.6,7.06608844]
[1680439008727,0.12118136,1812.7,1812.6,10.27388844]
[1680439008930,3.781999,1813.1,1812.6,10.56424813]
[1680439009229,0.12119861,1813.0,1812.7,1.86586473]
[1680439009534,0.12119861,1813.0,1812.8,6.88354255]
[1680439010434,0.12119861,1813.0,1812.8,5.88354255]
[1680439013931,3.2078,1812.9,1812.8,5.88354255]
[1680439015037,3.32902963,1812.9,1812.8,5.88354255]
[1680439016335,3.32902963,1812.9,1812.7,5.89465698]
[1680439039561,0.12122963,1812.9,1812.8,1.0]
[1680439039768,16.3078,1813.1,1812.8,1.0]
[1680439040066,0.04998136,1812.9,1812.8,7.09769821]
[1680439040262,16.3078,1813.1,1812.8,7.09769821]
[1680439043572,16.881999,1813.1,1812.8,7.96356294]
[1680439044764,16.881999,1813.1,1812.8,6.96356294]
[1680439044969,0.05000739,1813.0,1812.8,6.96356294]
[1680439045161,1.05000739,1813.0,1812.8,6.96356294]
[1680439045367,0.05000739,1813.0,1812.8,6.96356294]
[1680439045868,0.62420639,1813.0,1812.8,6.96356294]
[1680439047462,3.781999,1812.9,1812.8,6.96356294]
[1680439047665,3.781999,1812.9,1812.7,1.15630482]
[1680439047666,4.0690985,1812.9,1812.7,0.86586473]
[1680439047976,0.57525678,1812.8,1812.7,0.86586473]
[1680439048174,1.57525678,1812.8,1812.7,0.86586473]
[1680439048366,0.57525678,1812.8,1812.7,0.86586473]
[1680439049575,0.8612985,1812.8,1812.7,0.86586473]
[1680439050474,1.43668056,1812.8,1812.7,0.86586473]
[1680439051170,2.14422016,1812.8,1812.6,0.86586473]
[1680439051366,5.35202016,1812.7,1812.5,0.86586473]
[1680439051672,1.8630356,1812.6,1812.5,0.86586473]
[1680439051865,0.8630356,1812.6,1812.5,0.86586473]
[1680439052770,0.8630356,1812.6,1812.4,1.15630482]
[1680439052771,0.57502105,1812.6,1812.4,0.86586473]
[1680439052975,3.2078,1812.5,1812.4,0.86586473]
[1680439054477,3.78282105,1812.5,1812.4,0.86586473]
[1680439054679,3.2078,1812.5,1812.4,0.86586473]
[1680439056381,3.2078,1812.5,1812.3,0.86586473]
[1680439057481,1.0,1812.4,1812.2,0.86586473]
[1680439057778,3.2078,1812.3,1812.2,0.86586473]
[1680439059576,16.4078,1812.3,1812.2,0.86586473]
[1680439059981,16.63863126,1812.3,1812.2,0.86586473]
[1680439060584,16.63863126,1812.3,1812.1,0.86586473]
[1680439062687,16.63863126,1812.3,1812.0,0.86586473]
[1680439062881,3.2078,1812.1,1812.0,0.86586473]
[1680439064581,3.2078,1812.1,1811.9,0.86586473]
[1680439065188,13.2,1812.0,1811.9,0.86586473]
[1680439072894,13.2,1812.0,1811.7,5.36410482]
[1680439072895,13.2,1812.0,1811.8,0.86586473]
[1680439073289,13.2,1812.0,1811.8,1.86586473]
[1680439073489,13.2,1812.0,1811.9,0.86586473]
[1680439074299,3.2078,1812.1,1811.7,1.86586473]
[1680439074899,0.23311514,1812.0,1811.8,5.93233203]
[1680439075100,0.23311514,1812.0,1811.9,1.0]
[1680439075302,13.43311514,1812.0,1811.9,1.0]
[1680439075502,13.43311514,1812.0,1811.8,5.93233203]
[1680439076203,13.43311514,1812.0,1811.8,6.79819676]
[1680439076503,13.43311514,1812.0,1811.9,1.0]
[1680439076697,4.2078,1812.6,1811.9,5.07366473]
[1680439076896,3.2078,1812.6,1812.1,1.0]
[1680439077101,3.2078,1812.9,1812.5,3.2078]
[1680439077307,3.2078,1812.9,1812.5,4.07366473]
[1680439077608,3.2078,1812.9,1812.6,0.42599388]
[1680439077803,3.2078,1812.9,1812.6,1.42599388]
[1680439077998,3.2078,1812.9,1812.6,1.32429973]
[1680439083401,13.2,1812.8,1812.6,1.32429973]
[1680439088209,13.2,1812.8,1812.6,0.32429973]
[1680439090404,13.2,1812.8,1812.6,1.19016446]
[1680439090604,13.2,1812.8,1812.6,0.32429973]
[1680439091612,13.2,1812.8,1812.6,1.32429973]
[1680439095722,13.2,1812.8,1812.6,0.32429973]
[1680439096118,13.2,1812.8,1812.6,1.32429973]
[1680439097314,13.2,1812.8,1812.6,0.32429973]
[1680439098013,13.2,1812.8,1812.7,3.2078]
[1680439098412,13.2,1812.8,1812.7,9.20300847]
[1680439103323,13.2,1812.8,1812.7,14.71300847]
[1680439104616,3.2078,1813.3,1812.7,14.71300847]
[1680439104921,3.2078,1813.3,1812.9,3.2078]
[1680439105117,13.2,1813.2,1813.0,1.0]
[1680439105317,13.2,1813.2,1813.0,5.72724242]
[1680439107114,3.2078,1813.1,1812.9,6.01017804]
[1680439107623,3.2078,1813.1,1812.7,3.2078]
[1680439107824,3.2078,1813.1,1813.0,6.03423044]
[1680439108022,3.2078,1813.1,1812.9,5.91649754]
[1680439108223,3.2078,1813.1,1812.8,1.3375989]
[1680439108423,3.2078,1813.1,1812.7,3.2078]
[1680439108719,3.2078,1813.1,1812.9,6.02951597]
[1680439108924,3.2078,1813.1,1812.8,5.89749661]
[1680439110727,3.2078,1813.1,1812.5,5.07366473]
[1680439111023,3.2078,1813.1,1811.8,0.31214533]
[1680439111024,5.0,1812.6,1811.8,0.31214533]
[1680439111233,3.2078,1811.9,1811.5,1.43929219]
[1680439111522,3.2078,1811.7,1811.5,1.0]
[1680439111925,3.2078,1811.9,1811.6,6.27723556]
[1680439112121,3.2078,1811.7,1811.6,6.27723556]
[1680439113128,3.2078,1811.7,1811.5,5.73867554]
[1680439114435,0.00304635,1811.6,1811.5,5.73867554]
[1680439114830,3.2078,1811.7,1811.5,5.73867554]
[1680439115328,3.2078,1811.7,1811.6,0.57573534]
[1680439115733,3.2078,1811.7,1811.6,6.55448344]
[1680439117531,3.2078,1811.7,1811.6,5.9787481]
[1680439117728,3.2078,1811.7,1811.6,6.55448344]
[1680439117931,3.2078,1811.7,1811.6,0.57573534]
[1680439118234,3.2078,1811.7,1811.6,6.09356743]
[1680439119134,3.2078,1811.7,1811.6,6.66930277]
[1680439119530,3.2078,1811.7,1811.5,6.43450891]
[1680439119732,3.2078,1811.7,1811.6,6.84647445]
[1680439120037,3.2078,1811.9,1811.6,1.0]
[1680439120238,3.2078,1811.9,1811.6,7.16141334]
[1680439120540,3.2078,1811.9,1811.6,7.73714868]
[1680439123133,3.2078,1811.7,1811.6,7.16141334]
[1680439123336,3.2078,1811.7,1811.6,6.16141334]
[1680439123532,0.00228464,1811.7,1811.6,6.16141334]
[1680439123738,3.2078,1811.9,1811.6,7.73714868]
[1680439124237,3.7,1811.8,1811.7,1.0]
[1680439124443,3.7,1811.8,1811.7,6.97493857]
[1680439125441,3.7,1811.8,1811.7,5.97493857]
[1680439126934,3.7,1811.8,1811.6,0.54682949]
[1680439127136,3.7,1811.8,1811.6,2.12256483]
[1680439127437,3.21008464,1811.7,1811.6,1.0]
[1680439127942,3.2078,1811.7,1811.6,0.10592018]
[1680439128740,3.21008464,1811.7,1811.6,0.10592018]
[1680439129041,3.2078,1811.7,1811.6,0.10592018]
[1680439133859,3.7,1811.8,1811.6,0.10592018]
[1680439134038,0.00228464,1811.7,1811.6,0.10592018]
[1680439134239,3.7,1811.8,1811.6,0.10592018]
[1680439134546,0.00228464,1811.7,1811.6,0.10592018]
[1680439135046,3.7,1811.8,1811.6,0.10592018]
[1680439135448,0.00228464,1811.7,1811.6,0.10592018]
[1680439135947,3.7,1811.8,1811.6,0.10592018]
[1680439136247,0.00228464,1811.7,1811.6,0.10592018]
[1680439136549,3.7,1811.8,1811.6,0.10592018]
[1680439136846,0.00228464,1811.7,1811.6,0.10592018]
[1680439137036,3.7,1811.8,1811.6,0.10592018]
[1680439137547,3.21008464,1811.7,1811.6,0.10592018]
[1680439137949,3.2078,1811.7,1811.6,0.10592018]
[1680439141151,3.21008464,1811.7,1811.6,0.10592018]
[1680439144351,0.00228464,1811.7,1811.6,0.68165552]
[1680439144549,3.21008464,1811.7,1811.6,0.68165552]
[1680439144753,3.21008464,1811.7,1811.5,6.82915238]
[1680439144950,3.21008464,1811.7,1811.6,7.07839628]
[1680439145153,3.2078,1811.7,1811.6,1.0]
[1680439145352,3.21008464,1811.7,1811.5,0.57573534]
[1680439145547,3.21008464,1811.7,1811.6,6.30525978]
[1680439147150,4.21008464,1811.7,1811.6,6.30525978]
[1680439147449,3.21008464,1811.7,1811.5,0.06674801]
[1680439148148,1.0,1811.6,1811.3,0.57573534]
[1680439148349,1.0,1811.6,1811.2,1.57573534]
[1680439148350,3.2078,1811.4,1811.2,1.57573534]
[1680439148843,1.0,1811.3,1811.2,0.57573534]
[1680439149043,1.0,1811.3,1811.1,0.57573534]
[1680439149351,3.2078,1811.2,1811.1,0.57573534]
[1680439149654,3.2078,1811.2,1811.1,6.86223535]
[1680439149855,3.21389404,1811.2,1811.1,6.86223535]
[1680439150751,3.21389404,1811.2,1811.0,0.10542045]
[1680439151553,1.0,1811.1,1811.0,0.10542045]
[1680439153273,5.105,1811.0,1810.6,0.57573534]
[1680439153453,3.2078,1810.7,1810.5,0.57573534]
[1680439153957,3.2078,1810.7,1810.6,0.57573534]
[1680439154157,3.2078,1810.7,1810.6,5.99291833]
[1680439154460,3.2078,1810.7,1810.6,1.57604364]
[1680439154952,3.2078,1810.7,1810.6,7.36167794]
[1680439155553,3.2078,1810.7,1810.6,6.7856343]
[1680439156263,3.2078,1810.7,1810.6,5.7856343]
[1680439156457,3.2078,1810.7,1810.6,6.36188241]
[1680439156861,3.2078,1810.7,1810.6,0.57624811]
[1680439157157,3.2078,1810.7,1810.6,6.61768577]
[1680439157960,3.2078,1810.7,1810.6,0.57624811]
[1680439158548,3.2078,1810.7,1810.5,0.57624811]
[1680439159651,3.2078,1810.7,1810.6,5.81340938]
[1680439162764,3.2078,1810.7,1810.5,5.89418091]
[1680439163057,3.2078,1810.7,1810.4,1.57624811]
[1680439163262,3.2078,1810.7,1810.5,5.76504744]
[1680439164161,3.2078,1810.7,1810.6,1.0]
[1680439164560,3.2078,1810.7,1810.6,6.99173787]
[1680439165063,3.21770555,1810.7,1810.6,6.99173787]
[1680439165464,3.21770555,1810.7,1810.6,5.99173787]
[1680439165864,3.21770555,1810.7,1810.6,1.0]
[1680439166367,3.21770555,1810.7,1810.6,7.17864772]
[1680439166564,0.00990555,1810.7,1810.6,7.17864772]
[1680439166763,3.2078,1811.1,1810.7,1.009]
[1680439167168,3.2078,1811.1,1810.8,5.85379828]
[1680439167368,3.2078,1811.1,1810.9,1.0]
[1680439167867,3.2078,1811.1,1811.0,6.016101]
[1680439169568,3.2078,1811.1,1810.9,6.31262202]
[1680439171374,3.2078,1811.1,1811.0,1.0]
[1680439171769,3.2078,1811.1,1811.0,7.01084713]
[1680439173477,3.2078,1811.1,1811.0,6.01084713]
[1680439173870,3.2078,1811.1,1810.9,5.66719562]
[1680439174071,3.2078,1811.1,1811.0,1.0]
[1680439174479,3.2078,1811.1,1811.0,5.82932642]
[1680439174874,3.2078,1811.1,1810.9,6.35011589]
[1680439175074,3.2078,1811.1,1811.0,1.0]
[1680439175379,3.2078,1811.1,1811.0,7.15781087]
[1680439177373,3.2078,1811.3,1811.0,7.15781087]
[1680439177773,3.2078,1811.3,1811.0,6.15781087]
[1680439178275,3.2078,1811.3,1811.0,1.0]
[1680439178774,3.2078,1811.3,1811.1,6.24695237]
[1680439179578,4.4,1811.5,1811.2,1.0]
[1680439179579,3.2078,1811.5,1811.2,1.0]
[1680439179977,3.2078,1811.5,1811.3,6.11444968]
[1680439180178,7.6078,1811.5,1811.3,6.11444968]
[1680439181285,7.6078,1811.5,1811.2,5.90042611]
[1680439184076,3.2078,1811.3,1811.2,5.90042611]
[1680439189493,3.2078,1811.3,1811.0,0.57624811]
[1680439189788,3.2078,1811.1,1811.0,0.57624811]
[1680439190181,3.2078,1811.1,1811.0,6.42060335]
[1680439190377,3.2078,1811.1,1811.0,0.57624811]
[1680439191791,3.2078,1811.1,1811.0,6.75358682]
[1680439192488,3.2078,1811.1,1811.0,7.03967919]
[1680439193591,3.2078,1811.1,1811.0,8.03967919]
[1680439193896,3.2078,1811.3,1811.0,8.04362716]
[1680439194193,3.2078,1811.3,1811.1,2.4438145]
[1680439194390,3.2078,1811.3,1811.2,0.57752605]
[1680439194584,3.2078,1811.3,1811.2,6.52514103]
[1680439196594,3.2078,1811.5,1811.2,6.52514103]
[1680439196794,3.2078,1811.4,1811.3,1.0]
[1680439197188,3.2078,1811.4,1811.3,1.45520128]
[1680439197394,3.2078,1811.4,1811.3,0.45520128]
[1680439198090,3.2078,1811.4,1811.3,1.03272733]
[1680439198291,3.2078,1811.4,1811.3,0.45520128]
[1680439200397,3.2078,1811.4,1811.3,1.03272733]
[1680439204098,3.2078,1811.4,1811.3,1.89901578]
[1680439204300,3.2078,1811.6,1811.3,2.32148973]
[1680439204501,3.2078,1811.6,1811.5,1.57775329]
[1680439205002,3.2078,1811.6,1811.5,7.37414672]
[1680439205201,3.2078,1811.6,1811.5,6.37414672]
[1680439207599,3.2078,1811.6,1811.5,6.66268188]
[1680439209501,3.2078,1811.8,1811.5,6.66268188]
[1680439209704,3.2078,1811.8,1811.7,1.44423452]
[1680439210005,3.2078,1812.0,1811.7,6.76160207]
[1680439210204,3.2078,1812.0,1811.8,0.57764823]
[1680439210401,3.2078,1812.0,1811.9,0.57764823]
[1680439210607,3.2078,1812.0,1811.9,6.73162373]
[1680439211204,3.2078,1812.0,1811.9,6.1539755]
[1680439225619,3.2078,1812.0,1811.8,6.06205062]
[1680439241126,3.2078,1812.0,1811.8,6.63969885]
[1680439242122,3.2078,1812.0,1811.9,1.0]
[1680439242527,3.2078,1812.0,1811.9,6.84085657]
[1680439242717,3.2078,1812.0,1811.9,5.84085657]
[1680439243224,3.2078,1812.2,1811.9,6.4185048]
[1680439243526,3.2078,1812.2,1812.0,1.57764823]
[1680439243923,3.2078,1812.2,1812.1,6.30363791]
[1680439249433,3.78282105,1812.2,1812.1,6.88128614]
[1680439252737,4.64585665,1812.2,1812.1,6.88128614]
[1680439252939,3.78282105,1812.2,1812.1,6.88128614]
[1680439253132,4.0708356,1812.2,1812.1,6.88128614]
[1680439255239,4.35202016,1812.2,1812.1,6.88128614]
[1680439263537,4.35202016,1812.2,1812.1,6.30363791]
[1680439264240,4.35202016,1812.2,1812.1,6.88128614]
[1680439265745,4.35202016,1812.2,1812.1,6.87643247]
[1680439266740,4.07076543,1812.2,1812.1,7.16532495]
[1680439267745,3.78314407,1812.2,1812.1,8.44891517]
[1680439268145,3.78314407,1812.2,1812.1,7.44891517]
[1680439269054,1.71633024,1812.8,1812.1,7.44891517]
[1680439269055,24.61133874,1813.2,1813.1,8.2078]
[1680439269253,0.57563116,1813.9,1813.5,5.0]
[1680439269459,0.57563116,1814.0,1813.8,4.36391384]
[1680439269651,0.57563116,1814.0,1813.7,1.4451423]
[1680439269652,2.58976409,1814.2,1814.0,4.93425588]
[1680439269845,1.15100626,1814.3,1814.0,2.02320879]
[1680439270051,1.15100626,1814.3,1814.2,0.57799742]
[1680439270247,4.35880626,1814.3,1814.2,0.57799742]
[1680439270449,4.35880626,1814.3,1814.2,5.35739722]
[1680439270746,4.35880626,1814.3,1814.1,1.44509237]
[1680439271150,1.15100626,1814.3,1814.2,0.57799742]
[1680439271656,1.0,1814.4,1813.8,8.7178]
[1680439271949,1.0,1814.3,1813.8,8.7178]
[1680439272347,1.0,1814.3,1814.0,3.2078]
[1680439272751,1.0,1814.4,1814.1,5.82800405]
[1680439273257,1.0,1814.4,1814.2,3.2078]
[1680439273443,1.0,1814.4,1814.1,5.82800405]
[1680439273647,4.2078,1814.5,1814.3,0.16958957]
[1680439273844,3.2078,1814.5,1814.1,7.36396254]
[1680439274150,1.0,1814.7,1814.2,3.2078]
[1680439274456,1.0,1814.7,1814.1,12.87396254]
[1680439274457,1.0,1814.7,1814.4,3.2078]
[1680439274951,1.0,1814.7,1814.5,0.80111637]
[1680439275157,3.2078,1814.9,1814.5,0.80111637]
[1680439275357,3.2078,1814.7,1814.5,0.80111637]
[1680439275852,3.2078,1814.7,1814.4,6.76066675]
[1680439276052,3.2078,1814.7,1814.3,0.38085964]
[1680439276257,3.2078,1814.9,1814.5,6.17319063]
[1680439276455,3.2078,1814.9,1814.3,6.22058048]
[1680439276647,3.2078,1814.7,1814.3,6.22058048]
[1680439276962,3.2078,1814.7,1814.4,0.38117961]
[1680439277254,1.0,1814.8,1814.5,5.67329953]
[1680439277557,3.2078,1814.9,1814.5,5.67329953]
[1680439277864,3.2078,1814.9,1814.4,3.2078]
[1680439278359,3.2078,1814.9,1814.6,5.86041052]
[1680439278558,3.2078,1814.9,1814.5,6.26837575]
[1680439278764,3.2078,1814.9,1814.4,3.2078]
[1680439279156,3.2078,1814.9,1814.5,6.05456532]
[1680439279852,1.0,1815.1,1814.5,6.05456532]
[1680439279853,3.2078,1814.7,1814.5,6.05456532]
[1680439280359,3.2078,1814.7,1814.4,6.07045212]
[1680439280654,3.2078,1814.7,1814.6,6.32775035]
[1680439281060,3.2078,1814.7,1814.4,5.97891803]
[1680439281361,3.2078,1814.7,1814.1,9.7178]
[1680439281956,3.2078,1814.7,1814.4,6.26373919]
[1680439282154,3.2078,1814.7,1814.2,0.2950713]
[1680439282350,3.2078,1814.9,1814.5,5.81389993]
[1680439282555,3.2078,1814.9,1814.1,6.51]
[1680439282556,3.2078,1814.9,1814.4,7.35240039]
[1680439282760,3.2078,1814.9,1814.2,8.7178]
[1680439282953,3.2078,1814.9,1814.5,6.01348619]
[1680439283459,3.2078,1814.9,1814.4,0.01548682]
[1680439283665,3.2078,1814.9,1814.6,6.07793111]
[1680439283863,3.2078,1814.9,1814.4,6.12080298]
[1680439285364,3.2078,1814.9,1814.4,11.63080298]
[1680439285957,3.2078,1814.7,1814.4,6.12080298]
[1680439286354,3.2078,1814.7,1814.3,5.69324047]
[1680439287565,3.2078,1814.7,1814.4,1.0]
[1680439287762,3.2078,1814.7,1814.3,6.69324047]
[1680439287963,3.2078,1814.7,1814.5,6.10802841]
[1680439288164,3.2078,1814.7,1814.4,5.76771752]
[1680439288667,3.2078,1814.7,1814.2,8.7178]
[1680439288867,3.2078,1814.7,1814.1,6.51]
[1680439289063,5.0,1815.0,1814.5,6.20346709]
[1680439289261,4.2078,1814.6,1813.8,1.0]
[1680439289569,1.0,1814.5,1813.9,1.0]
[1680439289765,3.2078,1814.6,1813.9,1.0]
[1680439290067,3.2078,1814.6,1813.9,12.24218192]
[1680439290562,3.2078,1814.4,1813.9,12.24218192]
[1680439291762,3.2078,1814.4,1814.0,0.38111197]
[1680439292167,3.2078,1814.4,1814.1,5.94056425]
[1680439294565,3.2078,1814.2,1814.0,0.38111197]
[1680439294764,1.0,1814.1,1813.4,1.0]
[1680439294966,3.2078,1813.9,1813.4,1.0]
[1680439295267,3.2078,1813.9,1813.5,0.10841552]
[1680439295467,3.2078,1813.9,1813.5,6.20820006]
[1680439295669,3.2078,1813.9,1813.4,5.75766995]
[1680439296062,3.2078,1814.1,1813.6,5.84539712]
[1680439296264,18.669,1814.4,1813.7,1.0]
[1680439296265,1.0,1814.3,1813.7,1.0]
[1680439296571,3.2078,1814.2,1813.8,5.67608736]
[1680439296868,1.0,1814.3,1813.8,5.67608736]
[1680439296869,3.2078,1814.0,1813.8,5.67608736]
[1680439297260,3.2078,1814.0,1813.7,5.8754379]
[1680439298063,3.2078,1814.2,1813.7,5.8754379]
[1680439298261,3.2078,1814.2,1813.6,6.78897755]
[1680439298665,3.2078,1814.2,1813.7,3.2078]
[1680439298975,3.2078,1814.0,1813.8,6.99564987]
[1680439299168,3.2078,1814.0,1813.8,5.99564987]
[1680439299364,3.2078,1814.0,1813.4,1.0]
[1680439299365,3.2078,1814.0,1813.7,6.12724321]
[1680439299662,3.2078,1814.0,1813.4,4.2078]
[1680439299869,3.2078,1814.0,1813.8,6.3548232]
[1680439300070,3.2078,1814.0,1813.7,6.22316629]
[1680439300263,3.2078,1814.0,1813.5,1.07832255]
[1680439301166,3.2078,1814.0,1813.5,0.07832255]
[1680439301373,3.2078,1813.8,1813.5,0.07832255]
[1680439301869,3.2078,1813.8,1813.3,6.06980476]
[1680439302373,3.16942287,1813.6,1813.3,6.06980476]
[1680439302564,3.01749412,1813.6,1813.4,0.12269391]
[1680439302869,3.01749412,1813.6,1813.5,5.90868225]
[1680439303271,3.01749412,1813.6,1813.2,4.2078]
[1680439303272,3.01749412,1813.6,1813.4,6.1776945]
[1680439303463,3.01749412,1813.6,1813.3,0.78203293]
[1680439303773,3.01749412,1813.6,1813.2,4.2078]
[1680439304076,3.01749412,1813.6,1813.3,6.17690421]
[1680439306371,3.2078,1813.8,1813.3,6.17690421]
[1680439306874,3.2078,1813.8,1813.4,1.12267324]
[1680439307268,3.2078,1813.8,1813.5,6.34109006]
[1680439312568,3.2078,1813.8,1813.5,6.91908748]
[1680439313574,4.2078,1814.1,1813.5,6.91908748]
[1680439313771,3.2078,1814.1,1813.5,6.91908748]
[1680439314273,3.2078,1814.1,1813.6,4.78579742]
[1680439314475,3.2078,1814.1,1813.7,1.0]
[1680439314680,3.2078,1814.3,1814.0,0.57799742]
[1680439315072,3.2078,1814.3,1814.1,6.18287716]
[1680439321884,3.2078,1814.3,1814.2,0.22769636]
[1680439322084,3.2078,1814.3,1814.1,6.18287716]
[1680439322383,3.2078,1814.3,1814.2,6.17736386]
[1680439322577,3.2078,1814.3,1814.1,6.09964013]
[1680439323289,3.2078,1814.3,1814.0,5.75766957]
[1680439323477,3.2078,1814.3,1814.0,6.33566699]
[1680439324379,3.2078,1814.3,1814.0,5.75766957]
[1680439324579,3.2078,1814.1,1814.0,5.75766957]
[1680439325286,1.0,1814.0,1813.8,0.57799742]
[1680439325579,3.2078,1813.9,1813.8,0.57799742]
[1680439325776,1.0,1813.8,1813.7,0.57799742]
[1680439326478,3.2078,1813.9,1813.7,0.57799742]
[1680439329790,1.0,1813.8,1813.7,0.57799742]
[1680439330292,3.2078,1813.9,1813.7,0.57799742]
[1680439331790,3.2078,1813.9,1813.7,1.44509237]
[1680439332593,3.2078,1813.9,1813.7,0.57799742]
[1680439333589,3.2078,1813.9,1813.7,1.44509237]
[1680439335789,3.2078,1813.9,1813.8,0.57799742]
[1680439336788,3.2078,1813.9,1813.8,0.64162989]
[1680439339199,3.2078,1813.9,1813.8,1.50872484]
[1680439339592,3.2078,1813.9,1813.8,0.93072742]
[1680439339897,0.86132693,1814.0,1813.8,0.93072742]
[1680439340099,4.06912693,1814.1,1813.9,0.57778315]
[1680439340594,0.86132693,1814.0,1813.9,0.57778315]
[1680439341596,4.06912693,1814.1,1813.9,0.57778315]
[1680439342390,4.06912693,1814.1,1814.0,0.57778315]
[1680439342595,4.06912693,1814.1,1814.0,0.86709495]
[1680439342596,3.2078,1814.1,1814.0,0.86709495]
[1680439342790,3.2078,1814.1,1814.0,7.07039678]
[1680439351802,3.2078,1814.1,1814.0,7.13551199]
[1680439358514,0.86132693,1814.2,1814.0,7.13551199]
[1680439358716,4.06912693,1814.3,1814.1,0.57758376]
[1680439359208,3.2078,1814.3,1814.2,5.86213505]
[1680439359414,4.07107341,1814.3,1814.2,5.86213505]
[1680439360010,3.2078,1814.3,1814.2,5.86213505]
[1680439360314,4.07107489,1814.3,1814.2,5.86213505]
[1680439361511,4.07104135,1814.3,1814.2,5.86213505]
[1680439362707,4.07083864,1814.3,1814.2,5.86213505]
[1680439367017,4.07083864,1814.3,1814.2,6.01594665]
[1680439369716,3.2078,1814.3,1814.2,6.01594665]
[1680439369916,4.07086407,1814.3,1814.2,6.01594665]
[1680439370322,4.07086407,1814.3,1814.2,6.0115633]
[1680439378426,3.2078,1814.3,1814.1,0.57758376]
[1680439378629,3.2078,1814.3,1813.7,1.4451423]
[1680439378630,7.16200241,1814.2,1813.9,1.44467871]
[1680439378830,3.2078,1814.0,1813.9,0.86709495]
[1680439380132,4.0710382,1814.0,1813.9,0.57781717]
[1680439380322,4.0710382,1814.0,1813.9,0.86709495]
[1680439380522,3.2078,1814.0,1813.9,0.86709495]
[1680439382127,4.0710382,1814.0,1813.9,0.86709495]
[1680439386135,4.0710382,1814.0,1813.9,0.91930548]
[1680439389037,3.2078,1814.0,1813.9,0.91930548]
[1680439389837,3.78355687,1814.0,1813.9,0.91930548]
[1680439390436,3.78355687,1814.0,1813.9,7.19606152]
[1680439394142,3.78355687,1814.0,1813.9,6.32896657]
[1680439394839,0.57575687,1814.0,1813.9,7.48508041]
[1680439395143,1.43899507,1814.1,1813.9,7.48508041]
[1680439395345,1.43899507,1814.1,1814.0,0.86704291]
[1680439396748,1.43899507,1814.1,1814.0,1.86704291]
[1680439396949,1.43899507,1814.1,1814.0,1.96223743]
[1680439397246,1.43899507,1814.1,1814.0,0.96223743]
[1680439397746,0.57575687,1814.1,1814.0,0.96223743]
[1680439397955,0.57575687,1814.1,1814.0,1.25130836]
[1680439398250,0.57575687,1814.1,1814.0,8.14755013]
[1680439398443,0.57575687,1814.1,1814.0,7.14755013]
[1680439399055,0.57575687,1814.2,1814.0,7.83111282]
[1680439399254,0.57575687,1814.2,1814.1,2.15592776]
[1680439399642,0.57575687,1814.3,1814.1,8.75179009]
[1680439399847,0.57575687,1814.3,1814.2,0.86692637]
[1680439400049,0.57575687,1814.3,1814.2,1.86692637]
[1680439400247,0.57575687,1814.3,1814.2,7.14988237]
[1680439407074,0.57575687,1814.3,1814.2,6.86056025]
[1680439407461,0.57575687,1814.3,1814.2,7.72748662]
[1680439408164,0.57575687,1814.3,1814.2,6.86056025]
[1680439408367,0.8632382,1814.3,1814.2,6.86056025]
[1680439408560,1.8632382,1814.3,1814.2,6.86056025]
[1680439408865,1.8632382,1814.3,1814.2,0.57760425]
[1680439409464,1.0,1814.2,1814.1,0.57763431]
[1680439409664,5.0710382,1814.2,1814.0,0.67282883]
[1680439409858,0.57531736,1814.1,1814.0,0.67282883]
[1680439411465,0.57051307,1814.1,1814.0,0.67282883]
[1680439411870,0.57051307,1814.1,1814.0,0.61642731]
[1680439415865,1.8632382,1814.1,1814.0,0.038793]
[1680439419967,0.8632382,1814.1,1814.0,0.038793]
[1680439420168,1.8632382,1814.1,1814.0,0.038793]
[1680439420866,0.8632382,1814.1,1814.0,0.038793]
[1680439421268,0.8632382,1814.1,1814.0,0.61642731]
[1680439421667,0.8632382,1814.1,1814.0,0.038793]
[1680439422873,0.8632382,1814.1,1814.0,0.61642731]
[1680439424071,3.2078,1814.2,1814.0,0.61642731]
[1680439424072,4.0710382,1814.2,1814.0,0.61642731]
[1680439424269,1.8632382,1814.1,1814.0,0.61642731]
[1680439424574,1.8632382,1814.1,1814.0,0.038793]
[1680439426072,0.8632382,1814.1,1814.0,0.038793]
[1680439426669,0.8632382,1814.1,1814.0,0.61642731]
[1680439426875,0.8632382,1814.1,1814.0,0.038793]
[1680439429970,0.8632382,1814.1,1814.0,0.07845251]
[1680439430772,0.8632382,1814.1,1814.0,0.65608682]
[1680439436380,4.0710382,1814.2,1814.0,0.65608682]
[1680439436783,0.8632382,1814.1,1814.0,0.65608682]
[1680439438482,4.0710382,1814.2,1814.0,0.65608682]